fUSD/lending_fUSD_20260227
["ID","MTS","AMOUNT","RATE_DAILY","PERIOD"]
[406759885,1772164243383,-5000.0,0.00036449,10]
[406759886,1772164243394,-14956.31,0.00036456,10]
[406759887,1772164243406,-5000.0,0.00036463,7]
[406759888,1772164243418,-25000.0,0.00036482,10]
[406759889,1772164243430,-286.55488,0.00036488,30]
[406759890,1772164243441,-216.07799896,0.00036488,2]
[406759891,1772164243452,-5000.0,0.00036493,10]
[406759892,1772164243464,-5000.0,0.00036496,10]
[406759893,1772164243476,-5000.0,0.00036498,10]
[406759894,1772164243491,-1040.2,0.00036503,5]
[406759895,1772164243505,-5000.0,0.00036593,10]
[406759896,1772164243516,-500.0,0.00036599,30]
[406759897,1772164243529,-2000.0,0.000366,2]
[406759898,1772164243540,-5000.0,0.00036612,10]
[406759899,1772164243552,-5000.0,0.00036624,10]
[406759900,1772164243562,-500.0,0.00036633,14]
[406759901,1772164243572,-5000.0,0.00036639,10]
[406759902,1772164243583,-5000.0,0.00036654,10]
[406759903,1772164243593,-5000.0,0.00036665,10]
[406759904,1772164243605,-4407.49,0.00036666,10]
[406759905,1772164243618,-5000.0,0.00036671,10]
[406759906,1772164243631,-5000.0,0.00036671,10]
[406759907,1772164243641,-286.55488,0.00036688,30]
[406759908,1772164243651,-5000.0,0.00036712,10]
[406759909,1772164243662,-5158.50619813,0.00036737,30]
[406759910,1772164243673,-2376.95319577,0.00036748,30]
[406759911,1772164243684,-1698.94,0.00036754,10]
[406759912,1772164243695,-9067.7973,0.00036788,2]
[406759913,1772164243709,-3537.1189,0.00036788,2]
[406759914,1772164243719,-500.0,0.00036799,30]
[406759915,1772164243730,-1618.04178831,0.000368,2]
[406759916,1772164243740,-1250.51,0.000368,10]
[406759917,1772164243751,-150.0,0.00036839,2]
[406759918,1772164243761,-1076.58638953,0.00036844,30]
[406759919,1772164243773,-767.29,0.00036854,120]
[406759920,1772164243784,-25000.0,0.00036855,10]
[406759921,1772164243795,-335.51,0.0003686,2]
[406759922,1772164243805,-5000.0,0.00036869,10]
[406759923,1772164243817,-5000.0,0.00036872,10]
[406759924,1772164243827,-955.1829,0.00036888,7]
[406759925,1772164243838,-286.55488,0.00036888,30]
[406759926,1772164243850,-500.0,0.00036889,2]
[406759927,1772164243861,-500.0,0.00036889,120]
[406759928,1772164243873,-25000.0,0.0003689,10]
[406759929,1772164243884,-211.0,0.0003689,30]
[406759930,1772164243896,-173.0,0.000369,120]
[406759931,1772164243908,-178.0,0.000369,120]
[406759932,1772164243919,-178.0,0.000369,120]
[406759933,1772164243931,-165.0,0.000369,120]
[406759934,1772164243942,-231.0,0.000369,120]
[406759935,1772164243954,-4467.42,0.000369,14]
[406759936,1772164243965,-5839.42,0.000369,14]
[406759937,1772164243976,-800.0,0.00036907,14]
[406759938,1772164243987,-700.0,0.00036907,14]
[406759939,1772164243999,-14193.86168556,0.0003691,2]
[406759940,1772164244013,-25000.0,0.00036946,10]
[406759941,1772164244025,-25000.0,0.00036963,10]
[406759942,1772164244035,-191.03,0.0003697,10]
[406759943,1772164244047,-9067.7973,0.00036972,2]
[406759944,1772164244058,-3537.1189,0.00036972,2]
[406759945,1772164244068,-2518.0,0.00036988,10]
[406759946,1772164244079,-160.67,0.00036993,10]
[406759947,1772164244092,-365.0,0.00037,2]
[406759948,1772164244103,-363.82391549,0.00037,3]
[406759949,1772164244113,-166.45581802,0.00037,2]
[406759950,1772164244124,-500.0,0.00037,60]
[406759951,1772164244134,-800.0,0.00037,120]
[406759952,1772164244145,-174.00015664,0.00037,10]
[406759953,1772164244155,-432.19,0.00037004,30]
[406759954,1772164244166,-286.55488,0.00037088,30]
[406759955,1772164244176,-166.66,0.00037115,2]
[406759956,1772164244188,-9067.7973,0.00037156,2]
[406759957,1772164244199,-3537.1189,0.00037156,2]
[406759958,1772164244210,-188.34492417,0.000372,120]
[406759959,1772164244223,-188.34492417,0.000372,120]
[406759960,1772164244233,-500.0,0.00037232,30]
[406759961,1772164244244,-1040.2,0.00037256,7]
[406759962,1772164244257,-300.0,0.0003726,60]
[406759963,1772164244269,-199.86,0.0003726,120]
[406759964,1772164244279,-286.55488,0.00037288,30]
[406759965,1772164244291,-9067.7973,0.0003734,2]
[406759966,1772164244303,-3537.1189,0.0003734,2]
[406759967,1772164244313,-1423.64,0.000374,14]
[406759968,1772164244324,-2116.0,0.000374,7]
[406759969,1772164244335,-2521.05016726,0.00037439,30]
[406759970,1772164244346,-500.0,0.00037455,14]
[406759971,1772164244357,-286.55488,0.00037488,30]
[406759972,1772164244368,-9067.7973,0.00037523,2]
[406759973,1772164244379,-500.0,0.00037534,30]
[406759974,1772164244389,-500.0,0.00037534,30]
[406759975,1772164244400,-409.08,0.00037534,30]
[406759976,1772164244412,-4353.30885278,0.0003759,2]
[406759977,1772164244423,-286.55488,0.00037688,30]
[406759978,1772164244433,-1000.0,0.00037694,2]
[406759979,1772164244444,-800.0,0.00037729,14]
[406759980,1772164244455,-700.0,0.00037729,14]
[406759981,1772164244466,-1079.587425,0.00037796,30]
[406759982,1772164244477,-4467.42,0.000378,14]
[406759983,1772164244487,-5839.42,0.000378,14]
[406759984,1772164244498,-150.0,0.00037839,2]
[406759985,1772164244510,-203.10189738,0.0003788,2]
[406759986,1772164244520,-500.0,0.00037886,2]
[406759987,1772164244531,-500.0,0.00037886,120]
[406759988,1772164244542,-767.29,0.00037886,120]
[406759989,1772164244552,-255.64605974,0.00037887,7]
[406759990,1772164244563,-69461.8304039,0.00037887,7]
[406759991,1772164244573,-286.55488,0.00037888,30]
[406759992,1772164244584,-2000.0,0.00038,3]
[406759993,1772164244595,-526.0,0.00038,5]
[406759994,1772164244606,-1000.0,0.00038,30]
[406759995,1772164244616,-1000.0,0.00038,120]
[406759996,1772164244627,-500.0,0.00038,61]
[406759997,1772164244638,-169.0,0.00038,90]
[406759998,1772164244650,-165.0,0.00038,21]
[406759999,1772164244661,-1152.60807445,0.00038,2]
[406760000,1772164244672,-1040.2,0.0003801,7]
[406760001,1772164244683,-1063.83147539,0.00038049,30]
[406760002,1772164244694,-286.55488,0.00038088,30]
[406760003,1772164244705,-297.28675313,0.000381,33]
[406760004,1772164244716,-299.92705978,0.000381,33]
[406760005,1772164244727,-285.25144977,0.000381,33]
[406760006,1772164244742,-2547.24961663,0.0003813,30]
[406760007,1772164244754,-166.66,0.0003823,2]
[406760008,1772164244765,-150.0,0.00038252,2]
[406760009,1772164244776,-500.0,0.00038277,14]
[406760010,1772164244787,-335.51,0.00038278,2]
[406760011,1772164244798,-286.55488,0.00038288,30]
[406760012,1772164244809,-432.40255596,0.0003829,30]
[406760013,1772164244820,-185.59265539,0.000383,30]
[406760014,1772164244831,-150.2164536,0.000383,120]
[406760015,1772164244842,-150.0,0.00038332,2]
[406760016,1772164244853,-10000.0,0.00038356,120]
[406760017,1772164244863,-7852.0,0.00038356,120]
[406760018,1772164244874,-237.37622037,0.0003838,5]
[406760019,1772164244885,-1423.64,0.000384,14]
[406760020,1772164244896,-286.55488,0.00038488,30]
[406760021,1772164244907,-981.2917748,0.00038541,30]
[406760022,1772164244918,-800.0,0.00038551,14]
[406760023,1772164244929,-700.0,0.00038551,14]
[406760024,1772164244940,-1721.02305844,0.00038558,30]
[406760025,1772164244952,-6800.8479,0.00038627,20]
[406760026,1772164244964,-286.55488,0.00038688,30]
[406760027,1772164244975,-1004.49494519,0.000387,2]
[406760028,1772164244986,-4467.42,0.000387,14]
[406760029,1772164244997,-5839.42,0.000387,14]
[406760030,1772164245008,-178.0,0.00038745,120]
[406760031,1772164245020,-178.0,0.00038745,120]
[406760032,1772164245031,-165.0,0.00038745,120]
[406760033,1772164245043,-231.0,0.00038745,120]
[406760034,1772164245054,-1232.87806969,0.00038748,30]
[406760035,1772164245065,-1040.2,0.00038763,7]
[406760036,1772164245077,-1000.0,0.000388,120]
[406760037,1772164245088,-2704.4463128,0.0003882,30]
[406760038,1772164245098,-12028.03,0.00038831,120]
[406760039,1772164245109,-1500.02016875,0.00038834,2]
[406760040,1772164245119,-468.5021293,0.000389,120]
[406760041,1772164245130,-500.0,0.00038901,30]
[406760042,1772164245141,-1000.0,0.00038904,5]
[406760043,1772164245152,-211.0,0.0003891,30]
[406760045,1772164245163,-30908.17710716,0.00039,2]
[406760047,1772164245173,-3888.0,0.00039,30]
[406760049,1772164245183,-500.0,0.00039,62]
[406760051,1772164245193,-2000.0,0.00039,4]
[406760053,1772164245203,-213.27681051,0.00039,120]
[406760055,1772164245214,-36545.67197278,0.00039,10]
[406760057,1772164245226,-7100.0,0.00039,14]
[406760059,1772164245239,-362.23426453,0.00039,14]
[406760060,1772164245249,-1000.0,0.00039,120]
[406760061,1772164245259,-286.55488,0.00039088,30]
[406760063,1772164245271,-500.0,0.00039099,14]
[406760065,1772164245282,-10166.42,0.000391,30]
[406760066,1772164245292,-213.0,0.00039178,120]
[406760068,1772164245595,-2797.59560764,0.00039201,2]
[406760069,1772164245618,-286.55488,0.00039288,30]
[406760070,1772164245635,-470.15896317,0.000393,30]
[406760071,1772164245646,-166.66,0.00039344,2]
[406760072,1772164245656,-800.0,0.00039373,14]
[406760073,1772164245665,-2917.7881287,0.00039376,2]
[406760074,1772164245675,-1423.64,0.000394,14]
[406760075,1772164245684,-150.0,0.00039427,2]
[406760076,1772164245694,-504.0,0.0003945,23]
[406760077,1772164245704,-286.55488,0.00039488,30]
[406760078,1772164245714,-2717.54603748,0.00039511,30]
[406760079,1772164245724,-1040.2,0.00039516,30]
[406760080,1772164245733,-1600.0,0.0003953,120]
[406760081,1772164245742,-240.9,0.00039533,30]
[406760082,1772164245752,-159.13,0.000396,120]
[406760083,1772164245762,-4467.42,0.000396,14]
[406760084,1772164245771,-5839.42,0.000396,14]
[406760085,1772164245782,-286.55488,0.00039688,30]
[406760087,1772164245792,-1327.477405,0.000397,30]
[406760089,1772164245801,-1000.0,0.00039833,2]
[406760090,1772164245811,-767.29,0.00039871,120]
[406760092,1772164245821,-235.68557414,0.00039888,2]
[406760094,1772164245830,-286.55488,0.00039888,30]
[406760097,1772164245842,-432.19,0.00039888,30]
[406760098,1772164245852,-57688.1137381,0.00039999,2]
[406760100,1772164245861,-500.0,0.00039999,2]
[406760102,1772164245870,-517.91963663,0.00039999,120]
[406760104,1772164245879,-767.29,0.00039999,120]
[406760106,1772164245888,-500.0,0.00039999,31]
[406760108,1772164245897,-500.0,0.00039999,31]
[406760110,1772164245907,-385.96002226,0.0004,5]
[406760112,1772164245915,-391.87651362,0.0004,2]
[406760113,1772164245924,-1565.90030307,0.0004,2]
[406760114,1772164245934,-4122.35129752,0.0004,2]
[406760115,1772164245943,-219.5190105,0.0004,2]
[406760116,1772164245952,-759.93125462,0.0004,2]
[406760117,1772164245961,-601.582285,0.0004,2]
[406760118,1772164245971,-315.78640996,0.0004,2]
[406760119,1772164245981,-162.15218514,0.0004,2]
[406760120,1772164245990,-10722.29520088,0.0004,2]
[406760121,1772164246000,-2220.73980545,0.0004,7]
[406760122,1772164246010,-5000.0,0.0004,7]
[406760123,1772164246020,-165.32394078,0.0004,120]
[406760124,1772164246031,-294.15886103,0.0004,120]
[406760125,1772164246040,-318.25005932,0.0004,5]
[406760126,1772164246049,-250.0,0.0004,120]
[406760127,1772164246060,-325.46151963,0.0004,39]
[406760128,1772164246069,-1000.0,0.0004,30]
[406760129,1772164246080,-1829.0,0.0004,120]
[406760130,1772164246090,-1000.0,0.0004,4]
[406760131,1772164246100,-3553.57634893,0.0004,120]
[406760132,1772164246109,-7674.47601618,0.0004,120]
[406760133,1772164246121,-3000.0,0.0004,30]
[406760134,1772164246131,-6000.0,0.0004,3]
[406760135,1772164246140,-150.0,0.0004,90]
[406760136,1772164246150,-550.0,0.0004,63]
[406760137,1772164246159,-532.71328472,0.0004,120]
[406760138,1772164246168,-206.0,0.0004,120]
[406760139,1772164246178,-1774.38620823,0.0004,120]
[406760140,1772164246188,-152.95558486,0.0004,120]
[406760141,1772164246197,-150.98018049,0.0004,120]
[406760142,1772164246206,-221.17000121,0.0004,30]
[406760143,1772164246216,-1000.0,0.0004,120]
[406760144,1772164246231,-174.0,0.0004,120]
[406760145,1772164246240,-1003.44757665,0.0004,10]
[406760146,1772164246249,-986.0,0.0004,120]
[406760147,1772164246259,-10000.0,0.0004,100]
[406760148,1772164246270,-7181.0,0.0004,120]
[406760149,1772164246281,-25647.32165539,0.0004,120]
[406760150,1772164246290,-34215.57039983,0.0004,10]
[406760151,1772164246300,-1206.55735922,0.0004,14]
[406760152,1772164246310,-15000.0,0.0004,30]
[406760153,1772164246323,-154.0,0.0004,120]
[406760154,1772164246332,-152.0,0.0004,120]
[406760155,1772164246341,-5035.98616213,0.0004,5]
[406760156,1772164246350,-2000.0,0.0004,6]
[406760157,1772164246359,-198.5,0.0004,120]
[406760158,1772164246368,-641.68,0.0004,120]
[406760159,1772164246377,-227.97,0.0004,120]
[406760160,1772164246386,-304.59,0.0004,120]
[406760161,1772164246395,-650.07,0.0004,120]
[406760162,1772164246404,-1144.28,0.0004,120]
[406760163,1772164246414,-215.81,0.0004,120]
[406760164,1772164246423,-326.57,0.0004,120]
[406760165,1772164246432,-690.68,0.0004,120]
[406760166,1772164246441,-911.77,0.0004,120]
[406760167,1772164246451,-150.69,0.0004,2]
[406760168,1772164246461,-150.69,0.0004,2]
[406760169,1772164246470,-150.69,0.0004,2]
[406760170,1772164246480,-150.69,0.0004,2]
[406760171,1772164246490,-150.69,0.0004,2]
[406760172,1772164246499,-150.69,0.0004,2]
[406760173,1772164246508,-150.69,0.0004,2]
[406760174,1772164246517,-150.69,0.0004,2]
[406760175,1772164246527,-150.69,0.0004,2]
[406760176,1772164246535,-150.69,0.0004,2]
[406760177,1772164246545,-150.69,0.0004,2]
[406760178,1772164246554,-150.69,0.0004,2]
[406760179,1772164246563,-150.69,0.0004,2]
[406760180,1772164246573,-150.69,0.0004,2]
[406760181,1772164246582,-150.69,0.0004,2]
[406760182,1772164246591,-150.69,0.0004,2]
[406760183,1772164246600,-150.69,0.0004,2]
[406760184,1772164246609,-150.69,0.0004,2]
[406760185,1772164246618,-150.69,0.0004,2]
[406760186,1772164246627,-150.69,0.0004,2]
[406760187,1772164246636,-150.69,0.0004,2]
[406760188,1772164246646,-150.69,0.0004,2]
[406760189,1772164246655,-150.69,0.0004,2]
[406760190,1772164246665,-325.55,0.0004,120]
[406760191,1772164246674,-215.35073481,0.00040008,120]
[406760192,1772164246684,-151.0,0.00040044,14]
[406760193,1772164246693,-151.0,0.00040047,120]
[406760194,1772164246703,-151.0,0.00040047,120]
[406760195,1772164246713,-151.0,0.00040047,120]
[406760196,1772164246722,-151.0,0.00040047,120]
[406760197,1772164246731,-220.956002,0.00040047,120]
[406760198,1772164246740,-220.956002,0.00040047,120]
[406760199,1772164246749,-220.956002,0.00040047,120]
[406760200,1772164246758,-220.956002,0.00040047,120]
[406760201,1772164246767,-151.0,0.00040047,120]
[406760202,1772164246776,-151.0,0.00040047,120]
[406760203,1772164246785,-151.0,0.00040047,120]
[406760204,1772164246795,-151.0,0.00040047,120]
[406760205,1772164246804,-151.0,0.00040047,120]
[406760206,1772164246814,-156.704488,0.00040047,120]
[406760207,1772164246823,-151.0,0.00040047,120]
[406760208,1772164246833,-151.0,0.00040047,120]
[406760209,1772164246842,-151.0,0.00040047,7]
[406760210,1772164246851,-151.0,0.00040047,7]
[406760211,1772164246860,-151.037305,0.00040047,7]
[406760212,1772164246869,-219.359211,0.00040047,120]
[406760213,1772164246878,-219.359211,0.00040047,120]
[406760214,1772164246887,-219.359211,0.00040047,120]
[406760215,1772164246897,-219.359211,0.00040047,120]
[406760216,1772164246905,-353272.7682109,0.00040047,2]
[406760217,1772164246915,-286.55488,0.00040088,30]
[406760218,1772164246925,-150.0,0.00040165,2]
[406760219,1772164246934,-700.0,0.00040195,14]
[406760220,1772164246944,-10166.42,0.000402,30]
[406760221,1772164246954,-2887.84245833,0.00040202,30]
[406760222,1772164246963,-1744.40137777,0.00040226,30]
[406760223,1772164246973,-1040.2,0.00040269,30]
[406760224,1772164246982,-286.55488,0.00040288,30]
[406760225,1772164246992,-2000.0,0.000403,2]
[406760226,1772164247001,-651.0465324,0.00040376,2]
[406760227,1772164247010,-1423.64,0.000404,14]
[406760228,1772164247020,-286.55488,0.00040488,30]
[406760229,1772164247029,-151.52596408,0.000405,60]
[406760230,1772164247038,-4467.42,0.000405,14]
[406760231,1772164247048,-5839.42,0.000405,14]
[406760232,1772164247058,-155.87195871,0.00040522,2]
[406760233,1772164247068,-1389.16974986,0.00040651,30]
[406760234,1772164247077,-286.55488,0.00040688,30]
[406760235,1772164247086,-504.2868428,0.00040705,30]
[406760236,1772164247096,-500.0,0.00040743,14]
[406760237,1772164247105,-250.0,0.00040833,2]
[406760238,1772164247114,-16526.12510422,0.00040859,2]
[406760239,1772164247124,-286.55488,0.00040888,30]
[406760240,1772164247133,-1964.22429627,0.000409,2]
[406760241,1772164247143,-219.62898679,0.000409,2]
[406760242,1772164247152,-211.0,0.0004093,30]
[406760243,1772164247162,-500.0,0.00040949,2]
[406760244,1772164247171,-767.29,0.00040949,120]
[406760245,1772164247181,-189.28679953,0.00040949,2]
[406760246,1772164247191,-233219.0,0.0004095,60]
[406760247,1772164247201,-5000.0,0.00040959,7]
[406760248,1772164247210,-907.0,0.00040959,120]
[406760249,1772164247221,-349.77627048,0.00040959,120]
[406760250,1772164247235,-1294.34752324,0.00040962,30]
[406760251,1772164247244,-1283.51248068,0.00040996,2]
[406760252,1772164247254,-1013.91095656,0.00041,120]
[406760253,1772164247264,-1000.0,0.00041,30]
[406760254,1772164247275,-988.93817484,0.00041,2]
[406760255,1772164247284,-1000.0,0.00041,4]
[406760256,1772164247294,-2318.152568,0.00041,120]
[406760257,1772164247303,-4328.0,0.00041,5]
[406760258,1772164247312,-529.78210272,0.00041,30]
[406760259,1772164247323,-302.61217797,0.00041,120]
[406760260,1772164247333,-362.05,0.00041,120]
[406760261,1772164247342,-708.9189136,0.00041,30]
[406760262,1772164247351,-151.77887581,0.00041,7]
[406760263,1772164247360,-10166.42,0.00041,30]
[406760264,1772164247369,-800.0,0.00041017,14]
[406760265,1772164247379,-1040.2,0.00041022,30]
[406760266,1772164247388,-1744.40137777,0.0004106,30]
[406760267,1772164247398,-150.26757806,0.00041068,120]
[406760268,1772164247408,-6800.8479,0.0004108,20]
[406760269,1772164247418,-286.55488,0.00041088,30]
[406760270,1772164247427,-500.0,0.00041095,2]
[406760271,1772164247436,-843.0,0.00041096,120]
[406760272,1772164247445,-300.0,0.00041096,10]
[406760273,1772164247454,-150.0,0.00041096,10]
[406760274,1772164247463,-1000.46,0.00041096,120]
[406760275,1772164247473,-346.81,0.00041096,120]
[406760276,1772164247483,-800.0,0.00041096,13]
[406760277,1772164247492,-800.0,0.00041096,13]
[406760278,1772164247502,-800.0,0.00041096,13]
[406760279,1772164247511,-800.0,0.00041096,13]
[406760280,1772164247521,-800.0,0.00041096,13]
[406760281,1772164247530,-800.0,0.00041096,13]
[406760282,1772164247540,-800.0,0.00041096,13]
[406760283,1772164247551,-800.0,0.00041096,13]
[406760284,1772164247560,-800.0,0.00041096,13]
[406760285,1772164247570,-800.0,0.00041096,13]
[406760286,1772164247580,-800.0,0.00041096,13]
[406760287,1772164247589,-800.0,0.00041096,13]
[406760288,1772164247598,-800.0,0.00041096,13]
[406760289,1772164247607,-800.0,0.00041096,13]
[406760290,1772164247616,-800.0,0.00041096,13]
[406760291,1772164247626,-800.0,0.00041096,13]
[406760292,1772164247636,-800.0,0.00041096,13]
[406760293,1772164247645,-420.0,0.00041096,13]
[406760294,1772164247654,-151.0,0.00041096,120]
[406760295,1772164247664,-151.0,0.00041096,120]
[406760296,1772164247673,-151.0,0.00041096,120]
[406760297,1772164247683,-172.059775,0.00041096,120]
[406760298,1772164247692,-155.330113,0.00041096,120]
[406760299,1772164247702,-151.0,0.00041096,120]
[406760300,1772164247711,-151.0,0.00041096,120]
[406760301,1772164247722,-151.0,0.00041096,120]
[406760302,1772164247731,-169.976305,0.00041096,120]
[406760303,1772164247740,-151.0,0.00041096,120]
[406760304,1772164247750,-151.0,0.00041096,120]
[406760305,1772164247760,-151.0,0.00041096,120]
[406760306,1772164247769,-151.0,0.00041096,120]
[406760307,1772164247779,-151.0,0.00041096,120]
[406760308,1772164247788,-500.0,0.00041096,2]
[406760309,1772164247797,-500.0,0.00041096,2]
[406760310,1772164247806,-185.644654,0.00041096,120]
[406760311,1772164247815,-500.0,0.00041096,2]
[406760312,1772164247825,-500.0,0.00041096,2]
[406760313,1772164247834,-151.000023,0.00041096,120]
[406760314,1772164247843,-151.0,0.00041096,120]
[406760315,1772164247853,-151.0,0.00041096,120]
[406760316,1772164247863,-178.227243,0.00041096,120]
[406760317,1772164247873,-151.0,0.00041096,120]
[406760318,1772164247884,-151.0,0.00041096,120]
[406760319,1772164247893,-151.0,0.00041096,120]
[406760320,1772164247903,-151.0,0.00041096,120]
[406760321,1772164247915,-162.934635,0.00041096,120]
[406760322,1772164247924,-151.0,0.00041096,120]
[406760323,1772164247934,-514.259014,0.00041096,120]
[406760324,1772164247943,-209.530359,0.00041096,120]
[406760325,1772164247953,-514.259014,0.00041096,120]
[406760326,1772164247963,-514.259014,0.00041096,120]
[406760327,1772164247973,-514.259014,0.00041096,120]
[406760328,1772164247983,-239.090385,0.00041096,30]
[406760329,1772164247992,-239.090385,0.00041096,30]
[406760330,1772164248001,-151.0,0.00041096,120]
[406760331,1772164248010,-239.090385,0.00041096,30]
[406760332,1772164248019,-151.0,0.00041096,120]
[406760333,1772164248028,-239.090385,0.00041096,30]
[406760334,1772164248037,-180.898308,0.00041096,120]
[406760335,1772164248046,-570.413117,0.00041096,120]
[406760336,1772164248057,-570.413117,0.00041096,120]
[406760337,1772164248066,-570.413117,0.00041096,120]
[406760338,1772164248076,-570.413117,0.00041096,120]
[406760339,1772164248085,-191.733522,0.00041096,120]
[406760340,1772164248095,-151.0,0.00041096,120]
[406760341,1772164248106,-224.302244,0.00041096,120]
[406760342,1772164248114,-156.955548,0.00041096,120]
[406760343,1772164248124,-156.955548,0.00041096,120]
[406760344,1772164248133,-156.955548,0.00041096,120]
[406760345,1772164248142,-156.955548,0.00041096,120]
[406760346,1772164248151,-241.889116,0.00041096,120]
[406760347,1772164248160,-151.0,0.00041096,120]
[406760348,1772164248170,-300.394038,0.00041096,30]
[406760349,1772164248179,-151.0,0.00041096,120]
[406760350,1772164248188,-300.394038,0.00041096,30]
[406760351,1772164248198,-300.394038,0.00041096,30]
[406760352,1772164248207,-300.394038,0.00041096,30]
[406760353,1772164248217,-151.0,0.00041096,120]
[406760354,1772164248230,-151.0,0.00041096,60]
[406760355,1772164248241,-151.0,0.00041096,120]
[406760356,1772164248251,-164.996573,0.00041096,120]
[406760357,1772164248260,-151.0,0.00041096,35]
[406760358,1772164248270,-151.0,0.00041096,31]
[406760359,1772164248281,-151.0,0.00041096,120]
[406760360,1772164248293,-196.450597,0.00041096,120]
[406760361,1772164248304,-151.0,0.00041096,2]
[406760362,1772164248314,-151.0,0.00041096,2]
[406760363,1772164248323,-198.324231,0.00041096,2]
[406760364,1772164248332,-151.0,0.00041096,120]
[406760365,1772164248341,-926.930184,0.00041096,120]
[406760366,1772164248350,-926.930184,0.00041096,120]
[406760367,1772164248359,-151.0,0.00041096,120]
[406760368,1772164248368,-926.930184,0.00041096,120]
[406760369,1772164248377,-926.930184,0.00041096,120]
[406760370,1772164248387,-258.007832,0.00041096,120]
[406760371,1772164248396,-636.705888,0.00041096,120]
[406760372,1772164248405,-151.0,0.00041096,120]
[406760373,1772164248415,-636.705888,0.00041096,120]
[406760374,1772164248426,-151.0,0.00041096,120]
[406760375,1772164248436,-151.0,0.00041096,120]
[406760376,1772164248445,-636.705888,0.00041096,120]
[406760377,1772164248453,-151.0,0.00041096,120]
[406760378,1772164248463,-636.705888,0.00041096,120]
[406760379,1772164248473,-151.0,0.00041096,120]
[406760380,1772164248483,-151.0,0.00041096,120]
[406760381,1772164248492,-151.0,0.00041096,120]
[406760382,1772164248502,-800.0,0.00041096,13]
[406760383,1772164248511,-800.0,0.00041096,13]
[406760384,1772164248521,-800.0,0.00041096,13]
[406760385,1772164248530,-800.0,0.00041096,13]
[406760386,1772164248539,-800.0,0.00041096,13]
[406760387,1772164248549,-151.0,0.00041096,120]
[406760388,1772164248558,-800.0,0.00041096,13]
[406760389,1772164248567,-800.0,0.00041096,13]
[406760390,1772164248576,-800.0,0.00041096,13]
[406760391,1772164248586,-151.0,0.00041096,120]
[406760392,1772164248595,-158.193026,0.00041096,120]
[406760393,1772164248604,-151.0,0.00041096,120]
[406760394,1772164248614,-151.0,0.00041096,120]
[406760395,1772164248623,-159.305684,0.00041096,120]
[406760396,1772164248632,-151.0,0.00041096,120]
[406760397,1772164248642,-151.0,0.00041096,120]
[406760398,1772164248651,-151.844546,0.00041096,120]
[406760399,1772164248660,-151.0,0.00041096,120]
[406760400,1772164248669,-323.493849,0.00041096,15]
[406760401,1772164248678,-323.493849,0.00041096,15]
[406760402,1772164248687,-323.493849,0.00041096,15]
[406760403,1772164248849,-800.0,0.00041096,13]
[406760404,1772164248859,-323.493849,0.00041096,15]
[406760405,1772164248868,-800.0,0.00041096,13]
[406760406,1772164248877,-800.0,0.00041096,13]
[406760407,1772164248886,-800.0,0.00041096,13]
[406760408,1772164248896,-800.0,0.00041096,13]